[Event "FIDE Women's Grand Swiss 2023"]
[Site "Villa Marina, Douglas, Isle of Man, Isle Of Man"]
[Date "2023.10.29"]
[Round "5.21"]
[White "Tania, Sachdev"]
[Black "Kiolbasa, Oliwia"]
[Result "1-0"]
[TimeControl "40/90 + 30 + 30s/move"]
[WhiteFideId "5007844"]
[BlackFideId "1154613"]
[WhiteElo "2389"]
[BlackElo "2375"]

1. d4 {[%clk 01:30:46]} {[%emt 00:00:13]} Nf6 {[%clk 01:30:51]} {[%emt
00:00:10]} 2. c4 {[%clk 01:31:12]} {[%emt 00:00:03]} e6 {[%clk 01:31:11]}
{[%emt 00:00:10]} 3. Nf3 {[%clk 01:31:37]} {[%emt 00:00:04]} d5 {[%clk
01:31:27]} {[%emt 00:00:15]} 4. Nc3 {[%clk 01:32:03]} {[%emt 00:00:04]} Nbd7
{[%clk 01:31:46]} {[%emt 00:00:11]} 5. cxd5 {[%clk 01:32:14]} {[%emt 00:00:20]}
exd5 {[%clk 01:32:04]} {[%emt 00:00:11]} 6. Bf4 {[%clk 01:32:31]} {[%emt
00:00:13]} Bb4 {[%clk 01:31:59]} {[%emt 00:00:35]} 7. e3 {[%clk 01:32:24]}
{[%emt 00:00:37]} Ne4 {[%clk 01:31:54]} {[%emt 00:00:34]} 8. Qc2 {[%clk
01:32:26]} {[%emt 00:00:28]} g5 {[%clk 01:31:51]} {[%emt 00:00:34]} 9. Bg3
{[%clk 01:28:34]} {[%emt 00:04:23]} h5 {[%clk 01:31:12]} {[%emt 00:01:08]} 10.
h3 {[%clk 01:27:32]} {[%emt 00:01:32]} Qf6 {[%clk 01:30:37]} {[%emt 00:01:05]}
11. Bd3 {[%clk 01:22:31]} {[%emt 00:05:30]} Nxg3 {[%clk 01:14:05]} {[%emt
00:17:03]} 12. fxg3 {[%clk 01:21:02]} {[%emt 00:02:00]} g4 {[%clk 01:14:17]}
{[%emt 00:00:18]} 13. Nd2 {[%clk 01:08:22]} {[%emt 00:13:10]} c6 {[%clk
01:01:32]} {[%emt 00:13:15]} 14. O-O-O {[%clk 01:02:38]} {[%emt 00:06:13]} Nb6
{[%clk 00:58:26]} {[%emt 00:03:35]} 15. Rdf1 {[%clk 00:56:18]} {[%emt
00:06:51]} Qe7 {[%clk 00:43:55]} {[%emt 00:15:01]} 16. e4 {[%clk 00:36:05]}
{[%emt 00:20:42]} Bxc3 {[%clk 00:42:29]} {[%emt 00:01:56]} 17. Qxc3 {[%clk
00:34:51]} {[%emt 00:01:45]} gxh3 {[%clk 00:42:09]} {[%emt 00:00:50]} 18. gxh3
{[%clk 00:35:14]} {[%emt 00:00:07]} Be6 {[%clk 00:42:05]} {[%emt 00:00:34]} 19.
e5 {[%clk 00:31:15]} {[%emt 00:04:29]} O-O-O {[%clk 00:41:24]} {[%emt
00:01:11]} 20. Be2 {[%clk 00:29:40]} {[%emt 00:02:04]} Kb8 {[%clk 00:36:53]}
{[%emt 00:05:02]} 21. Kb1 {[%clk 00:29:03]} {[%emt 00:01:08]} Rdg8 {[%clk
00:35:49]} {[%emt 00:01:33]} 22. Rf3 {[%clk 00:26:59]} {[%emt 00:02:34]} Rg5
{[%clk 00:30:11]} {[%emt 00:06:09]} 23. Nb3 {[%clk 00:22:24]} {[%emt 00:05:05]}
Bf5+ {[%clk 00:23:50]} {[%emt 00:06:50]} 24. Bd3 {[%clk 00:22:53]} {[%emt
00:00:01]} Be4 {[%clk 00:22:45]} {[%emt 00:01:35]} 25. Bxe4 {[%clk 00:23:18]}
{[%emt 00:00:05]} dxe4 {[%clk 00:23:09]} {[%emt 00:00:05]} 26. Rff1 {[%clk
00:23:17]} {[%emt 00:00:32]} Nd5 {[%clk 00:08:38]} {[%emt 00:15:01]} 27. Qe1
{[%clk 00:23:42]} {[%emt 00:00:04]} e3 {[%clk 00:07:23]} {[%emt 00:01:47]} 28.
Nc5 {[%clk 00:22:41]} {[%emt 00:01:31]} Rg7 {[%clk 00:06:47]} {[%emt 00:01:05]}
29. Rf5 {[%clk 00:19:15]} {[%emt 00:03:55]} Rhg8 {[%clk 00:05:34]} {[%emt
00:01:45]} 30. Rhf1 {[%clk 00:17:29]} {[%emt 00:02:16]} b6 {[%clk 00:03:21]}
{[%emt 00:02:43]} 31. Ne4 {[%clk 00:17:14]} {[%emt 00:00:44]} Qe6 {[%clk
00:03:46]} {[%emt 00:00:05]} 32. Rxh5 {[%clk 00:15:23]} {[%emt 00:02:22]} Qg6
{[%clk 00:03:10]} {[%emt 00:01:05]} 33. Rh4 {[%clk 00:13:17]} {[%emt 00:02:36]}
Re8 {[%clk 00:02:25]} {[%emt 00:01:15]} 34. Ka1 {[%clk 00:09:25]} {[%emt
00:04:22]} Qe6 {[%clk 00:02:13]} {[%emt 00:00:41]} 35. Nd6 {[%emt 00:03:26]}
Reg8 {[%clk 00:02:39]} 36. Nf5 {[%clk 00:05:29]} {[%emt 00:01:36]} Rg6 {[%clk
00:01:34]} {[%emt 00:01:35]} 37. Re4 {[%clk 00:04:00]} {[%emt 00:01:58]} Rg5
{[%clk 00:00:54]} {[%emt 00:01:10]} 38. g4 {[%clk 00:03:34]} {[%emt 00:00:57]}
c5 {[%clk 00:01:06]} {[%emt 00:00:18]} 39. dxc5 {[%clk 00:01:24]} {[%emt
00:02:39]} bxc5 {[%clk 00:01:22]} {[%emt 00:00:14]} 40. Nxe3 {[%clk 00:00:44]}
{[%emt 00:01:10]} Nb4 {[%clk 00:00:59]} {[%emt 00:00:54]} 41. Rxb4+ {[%clk
00:23:06]} {[%emt 00:08:07]} cxb4 {[%clk 00:31:22]} {[%emt 00:00:07]} 42. Qxb4+
{[%clk 00:23:35]} {[%emt 00:00:01]} Ka8 {[%clk 00:28:29]} {[%emt 00:03:23]} 43.
Qe4+ {[%clk 00:22:25]} {[%emt 00:01:40]} Kb8 {[%clk 00:28:54]} {[%emt
00:00:05]} 44. Nf5 {[%clk 00:18:56]} {[%emt 00:03:59]} Rc8 {[%clk 00:28:09]}
{[%emt 00:01:15]} 45. Qf4 {[%clk 00:10:22]} {[%emt 00:09:04]} Rgg8 {[%clk
00:25:58]} {[%emt 00:02:40]} 46. Nd6 {[%clk 00:09:46]} {[%emt 00:01:06]} Rc7
{[%clk 00:25:58]} {[%emt 00:00:30]} 47. Qb4+ {[%clk 00:08:25]} {[%emt
00:01:52]} Ka8 {[%clk 00:26:22]} {[%emt 00:00:06]} 48. Qe4+ {[%clk 00:08:43]}
{[%emt 00:00:12]} Kb8 {[%clk 00:26:45]} {[%emt 00:00:06]} 49. Kb1 {[%clk
00:08:26]} {[%emt 00:00:48]} Rd8 {[%clk 00:24:28]} {[%emt 00:02:46]} 50. Qb4+
{[%clk 00:08:25]} {[%emt 00:00:31]} Ka8 {[%clk 00:24:51]} {[%emt 00:00:07]} 51.
Qa5 {[%clk 00:07:29]} {[%emt 00:01:26]} Qg6+ {[%clk 00:20:03]} {[%emt
00:05:19]} 52. Rf5 {[%clk 00:07:15]} {[%emt 00:00:43]} Kb8 {[%clk 00:20:27]}
{[%emt 00:00:05]} 53. Qb5+ {[%clk 00:06:49]} {[%emt 00:00:57]} Ka8 {[%clk
00:20:52]} {[%emt 00:00:06]} 54. Qd5+ {[%clk 00:07:01]} {[%emt 00:00:16]} Kb8
{[%clk 00:21:20]} {[%emt 00:00:02]} 55. a3 {[%clk 00:06:48]} {[%emt 00:00:44]}
a6 {[%clk 00:19:06]} {[%emt 00:02:45]} 56. Qb3+ {[%clk 00:06:42]} {[%emt
00:00:36]} Ka8 {[%clk 00:19:21]} {[%emt 00:00:15]} 57. Qb6 {[%clk 00:06:53]}
{[%emt 00:00:18]} Rdd7 {[%clk 00:19:23]} {[%emt 00:00:28]} 58. Qxa6+ {[%clk
00:07:12]} {[%emt 00:00:12]} Kb8 {[%clk 00:19:52]} {[%emt 00:00:01]} 59. Qb5+
{[%clk 00:06:56]} {[%emt 00:00:46]} Ka8 {[%clk 00:19:58]} {[%emt 00:00:23]} 60.
Qd5+ {[%clk 00:06:47]} {[%emt 00:00:39]} Kb8 {[%clk 00:20:22]} {[%emt
00:00:06]} 61. Qb3+ {[%clk 00:06:45]} {[%emt 00:00:32]} Ka8 {[%clk 00:20:44]}
{[%emt 00:00:08]} 62. Ka2 {[%clk 00:07:02]} {[%emt 00:00:14]} Qh6 {[%clk
00:19:51]} {[%emt 00:01:22]} 63. Qa4+ {[%clk 00:06:21]} {[%emt 00:01:11]} Kb8
{[%clk 00:20:01]} {[%emt 00:00:20]} 64. Rf3 {[%clk 00:04:54]} {[%emt 00:01:56]}
1-0

[Event "FIDE Women's Grand Swiss 2023"]
[Site "Villa Marina, Douglas, Isle of Man, Isle Of Man"]
[Date "2023.10.29"]
[Round "5.22"]
[White "Cramling, Pia"]
[Black "Lee, Alice"]
[Result "1-0"]
[TimeControl "40/90 + 30 + 30s/move"]
[WhiteFideId "1700030"]
[BlackFideId "30941822"]
[WhiteElo "2446"]
[BlackElo "2388"]

1. Nf3 {[%clk 01:30:52]} {[%emt 00:00:07]} d5 {[%clk 01:30:56]} {[%emt
00:00:05]} 2. c4 {[%clk 01:31:11]} {[%emt 00:00:10]} dxc4 {[%clk 01:30:48]}
{[%emt 00:00:38]} 3. e3 {[%clk 01:30:56]} {[%emt 00:00:44]} Nf6 {[%clk
01:31:11]} {[%emt 00:00:08]} 4. Bxc4 {[%clk 01:30:59]} {[%emt 00:00:27]} e6
{[%clk 01:31:30]} {[%emt 00:00:12]} 5. O-O {[%clk 01:28:25]} {[%emt 00:03:03]}
a6 {[%clk 01:31:23]} {[%emt 00:00:38]} 6. Qe2 {[%clk 01:26:25]} {[%emt
00:02:29]} c5 {[%clk 01:29:08]} {[%emt 00:02:46]} 7. Rd1 {[%clk 01:25:49]}
{[%emt 00:01:04]} b5 {[%clk 01:28:21]} {[%emt 00:01:18]} 8. Bb3 {[%clk
01:26:02]} {[%emt 00:00:16]} Bb7 {[%clk 01:25:04]} {[%emt 00:03:48]} 9. a4
{[%clk 01:19:56]} {[%emt 00:06:36]} Nbd7 {[%clk 01:21:25]} {[%emt 00:04:10]} 10.
axb5 {[%clk 01:05:37]} {[%emt 00:14:49]} axb5 {[%clk 01:21:50]} {[%emt
00:00:05]} 11. Rxa8 {[%clk 01:05:51]} {[%emt 00:00:15]} Qxa8 {[%clk 01:22:18]}
{[%emt 00:00:03]} 12. Qxb5 {[%clk 01:01:57]} {[%emt 00:04:23]} Bxf3 {[%clk
01:21:17]} {[%emt 00:01:31]} 13. gxf3 {[%clk 01:02:22]} {[%emt 00:00:05]} Qxf3
{[%clk 01:21:11]} {[%emt 00:00:36]} 14. Qf1 {[%clk 01:02:04]} {[%emt 00:00:47]}
g5 {[%clk 00:51:08]} {[%emt 00:30:34]} 15. d3 {[%clk 00:57:01]} {[%emt
00:05:31]} Bd6 {[%clk 00:44:46]} {[%emt 00:06:55]} 16. Qg2 {[%clk 00:54:56]}
{[%emt 00:02:34]} Qh5 {[%clk 00:45:08]} {[%emt 00:00:08]} 17. Nd2 {[%clk
00:45:55]} {[%emt 00:09:30]} g4 {[%clk 00:42:46]} {[%emt 00:02:53]} 18. Nc4
{[%clk 00:40:24]} {[%emt 00:06:01]} Bc7 {[%clk 00:42:36]} {[%emt 00:00:40]} 19.
Bd2 {[%clk 00:37:23]} {[%emt 00:03:31]} Ke7 {[%clk 00:42:08]} {[%emt 00:00:59]}
20. Ra1 {[%clk 00:35:45]} {[%emt 00:02:07]} Qg6 {[%clk 00:38:49]} {[%emt
00:03:49]} 21. Bc2 {[%clk 00:31:43]} {[%emt 00:04:31]} Nd5 {[%clk 00:30:36]}
{[%emt 00:08:45]} 22. Ra7 {[%clk 00:31:18]} {[%emt 00:00:54]} Rc8 {[%clk
00:28:44]} {[%emt 00:02:22]} 23. Ba5 {[%clk 00:26:56]} {[%emt 00:04:51]} Qg8
{[%clk 00:08:51]} {[%emt 00:20:24]} 24. Bxc7 {[%clk 00:20:05]} {[%emt
00:07:22]} Rxc7 {[%clk 00:09:13]} {[%emt 00:00:08]} 25. Rxc7 {[%clk 00:20:21]}
{[%emt 00:00:14]} Nxc7 {[%clk 00:09:41]} {[%emt 00:00:02]} 26. Qc6 {[%clk
00:20:25]} {[%emt 00:00:25]} Kd8 {[%clk 00:04:24]} {[%emt 00:05:48]} 27. Ba4
{[%clk 00:19:01]} {[%emt 00:01:53]} Qe8 {[%clk 00:04:07]} {[%emt 00:00:48]} 28.
Qb7 {[%clk 00:14:47]} {[%emt 00:04:41]} Nd5 {[%clk 00:01:01]} {[%emt 00:03:38]}
29. Nd6 {[%clk 00:14:26]} {[%emt 00:00:50]} 1-0

[Event "FIDE Women's Grand Swiss 2023"]
[Site "Villa Marina, Douglas, Isle of Man, Isle Of Man"]
[Date "2023.10.29"]
[Round "5.23"]
[White "Matnadze Bujiashvili, Ann"]
[Black "Danielian, Elina"]
[Result "0-1"]
[TimeControl "40/90 + 30 + 30s/move"]
[WhiteFideId "13601377"]
[BlackFideId "13300210"]
[WhiteElo "2400"]
[BlackElo "2416"]

1. Nf3 {[%clk 01:30:56]} {[%emt 00:00:04]} Nf6 {[%clk 01:30:21]} {[%emt
00:00:39]} 2. c4 {[%clk 01:31:00]} {[%emt 00:00:26]} e6 {[%clk 01:30:32]}
{[%emt 00:00:18]} 3. g3 {[%clk 01:30:40]} {[%emt 00:00:50]} b6 {[%clk
01:29:07]} {[%emt 00:01:57]} 4. Bg2 {[%clk 01:30:55]} {[%emt 00:00:14]} Bb7
{[%clk 01:29:33]} {[%emt 00:00:04]} 5. d4 {[%clk 01:30:51]} {[%emt 00:00:35]}
Bb4+ {[%clk 01:29:44]} {[%emt 00:00:19]} 6. Nbd2 {[%clk 01:30:45]} {[%emt
00:00:35]} O-O {[%clk 01:29:57]} {[%emt 00:00:18]} 7. O-O {[%clk 01:31:09]}
{[%emt 00:00:06]} d5 {[%clk 01:25:35]} {[%emt 00:04:51]} 8. Ne5 {[%clk
01:30:15]} {[%emt 00:01:24]} Nbd7 {[%clk 01:21:48]} {[%emt 00:04:18]} 9. Qa4
{[%clk 01:24:23]} {[%emt 00:06:21]} Bd6 {[%clk 01:15:35]} {[%emt 00:06:42]} 10.
cxd5 {[%clk 01:21:29]} {[%emt 00:03:25]} exd5 {[%clk 01:15:50]} {[%emt
00:00:16]} 11. Ndc4 {[%clk 01:17:59]} {[%emt 00:04:00]} Bxe5 {[%clk 01:14:37]}
{[%emt 00:01:42]} 12. Nxe5 {[%clk 01:17:32]} {[%emt 00:00:57]} Nxe5 {[%clk
01:14:43]} {[%emt 00:00:24]} 13. dxe5 {[%clk 01:18:00]} {[%emt 00:00:02]} Ne4
{[%clk 01:13:36]} {[%emt 00:01:37]} 14. Bf4 {[%clk 01:07:16]} {[%emt 00:11:14]}
Qe7 {[%clk 01:13:29]} {[%emt 00:00:36]} 15. h4 {[%clk 01:03:57]} {[%emt
00:03:50]} h6 {[%clk 01:09:47]} {[%emt 00:04:12]} 16. Rad1 {[%clk 00:56:16]}
{[%emt 00:08:11]} Rfd8 {[%clk 00:53:19]} {[%emt 00:16:58]} 17. f3 {[%clk
00:44:00]} {[%emt 00:12:46]} Nc5 {[%clk 00:53:45]} {[%emt 00:00:04]} 18. Qa3
{[%clk 00:43:03]} {[%emt 00:01:27]} a5 {[%clk 00:40:20]} {[%emt 00:13:55]} 19.
Rd2 {[%clk 00:32:38]} {[%emt 00:10:56]} d4 {[%clk 00:24:05]} {[%emt 00:16:44]}
20. h5 {[%clk 00:31:08]} {[%emt 00:02:00]} Qe8 {[%clk 00:22:00]} {[%emt
00:02:35]} 21. g4 {[%clk 00:28:33]} {[%emt 00:03:05]} Ne6 {[%clk 00:17:46]}
{[%emt 00:04:44]} 22. Bg3 {[%clk 00:28:51]} {[%emt 00:00:11]} c5 {[%clk
00:16:47]} {[%emt 00:01:31]} 23. f4 {[%clk 00:27:44]} {[%emt 00:01:37]} Bxg2
{[%clk 00:16:56]} {[%emt 00:00:21]} 24. Kxg2 {[%clk 00:28:12]} {[%emt
00:00:01]} c4 {[%clk 00:12:08]} {[%emt 00:05:19]} 25. Qf3 {[%clk 00:25:04]}
{[%emt 00:03:38]} Rac8 {[%clk 00:12:09]} {[%emt 00:00:29]} 26. g5 {[%clk
00:15:26]} {[%emt 00:10:07]} c3 {[%clk 00:08:39]} {[%emt 00:04:00]} 27. bxc3
{[%clk 00:14:13]} {[%emt 00:01:42]} dxc3 {[%clk 00:08:58]} {[%emt 00:00:12]} 28.
Rxd8 {[%clk 00:13:51]} {[%emt 00:00:52]} Qxd8 {[%clk 00:09:21]} {[%emt
00:00:07]} 29. gxh6 {[%clk 00:10:38]} {[%emt 00:03:42]} c2 {[%clk 00:09:29]}
{[%emt 00:00:23]} 30. Qe3 {[%clk 00:06:49]} {[%emt 00:04:19]} Qd1 {[%clk
00:06:23]} {[%emt 00:03:36]} 31. Qc1 {[%clk 00:02:40]} {[%emt 00:04:39]} Qxe2+
{[%clk 00:06:25]} {[%emt 00:00:28]} 32. Rf2 {[%clk 00:02:55]} {[%emt 00:00:15]}
Qd1 {[%clk 00:05:53]} {[%emt 00:01:02]} 33. Rf1 {[%clk 00:03:12]} {[%emt
00:00:13]} Rd8 {[%clk 00:05:34]} {[%emt 00:00:49]} 34. h7+ {[%clk 00:00:59]}
{[%emt 00:02:43]} Kh8 {[%clk 00:05:51]} {[%emt 00:00:13]} 35. f5 {[%clk
00:00:57]} {[%emt 00:00:32]} Rd2+ {[%clk 00:05:33]} {[%emt 00:00:47]} 36. Bf2
{[%clk 00:01:00]} {[%emt 00:00:27]} Nf4+ {[%clk 00:05:39]} {[%emt 00:00:25]} 37.
Kh2 {[%clk 00:01:18]} {[%emt 00:00:12]} Qxh5+ {[%clk 00:05:40]} {[%emt
00:00:29]} 0-1

[Event "FIDE Women's Grand Swiss 2023"]
[Site "Villa Marina, Douglas, Isle of Man, Isle Of Man"]
[Date "2023.10.29"]
[Round "5.24"]
[White "Arakhamia-Grant, Ketevan"]
[Black "Nassr, Lina"]
[Result "1-0"]
[TimeControl "40/90 + 30 + 30s/move"]
[WhiteFideId "13600168"]
[BlackFideId "7908075"]
[WhiteElo "2297"]
[BlackElo "2066"]

1. e4 {[%clk 01:30:58]} {[%emt 00:00:02]} c5 {[%clk 01:30:42]} {[%emt
00:00:19]} 2. Nf3 {[%clk 01:31:22]} {[%emt 00:00:06]} e6 {[%clk 01:31:03]}
{[%emt 00:00:09]} 3. d4 {[%clk 01:31:45]} {[%emt 00:00:07]} cxd4 {[%clk
01:31:27]} {[%emt 00:00:06]} 4. Nxd4 {[%clk 01:32:11]} {[%emt 00:00:04]} Nf6
{[%clk 01:31:31]} {[%emt 00:00:25]} 5. Nc3 {[%clk 01:32:35]} {[%emt 00:00:07]}
Nc6 {[%clk 01:31:42]} {[%emt 00:00:19]} 6. a3 {[%clk 01:31:37]} {[%emt
00:01:28]} d5 {[%clk 01:31:06]} {[%emt 00:01:05]} 7. Bb5 {[%clk 01:31:39]}
{[%emt 00:00:29]} Qc7 {[%clk 01:27:35]} {[%emt 00:04:01]} 8. exd5 {[%clk
01:31:00]} {[%emt 00:01:09]} Nxd5 {[%clk 01:25:55]} {[%emt 00:02:10]} 9. Nxd5
{[%clk 01:30:38]} {[%emt 00:00:51]} exd5 {[%clk 01:26:22]} {[%emt 00:00:05]} 10.
O-O {[%clk 01:28:28]} {[%emt 00:02:40]} Be7 {[%clk 01:16:42]} {[%emt 00:10:09]}
11. Bf4 {[%clk 01:17:41]} {[%emt 00:11:16]} Qd7 {[%clk 01:10:15]} {[%emt
00:06:58]} 12. Re1 {[%clk 01:16:22]} {[%emt 00:01:49]} a6 {[%clk 01:08:17]}
{[%emt 00:02:28]} 13. Bxc6 {[%clk 00:45:50]} {[%emt 00:31:01]} bxc6 {[%clk
01:06:55]} {[%emt 00:01:52]} 14. Bg5 {[%clk 00:37:49]} {[%emt 00:08:31]} f6
{[%clk 01:04:21]} {[%emt 00:03:04]} 15. Qh5+ {[%clk 00:37:14]} {[%emt
00:01:05]} g6 {[%clk 00:35:03]} {[%emt 00:29:48]} 16. Qe2 {[%clk 00:37:30]}
{[%emt 00:00:14]} Kf7 {[%clk 00:34:03]} {[%emt 00:01:31]} 17. Nxc6 {[%clk
00:12:58]} {[%emt 00:25:02]} Re8 {[%clk 00:14:59]} {[%emt 00:19:34]} 18. Nxe7
{[%clk 00:12:13]} {[%emt 00:01:15]} Rxe7 {[%clk 00:15:10]} {[%emt 00:00:18]} 19.
Qf3 {[%clk 00:08:45]} {[%emt 00:03:58]} Rxe1+ {[%clk 00:11:59]} {[%emt
00:03:42]} 20. Rxe1 {[%clk 00:09:12]} {[%emt 00:00:03]} Qf5 {[%clk 00:11:11]}
{[%emt 00:01:18]} 21. Qe3 {[%clk 00:08:59]} {[%emt 00:00:43]} Be6 {[%clk
00:06:21]} {[%emt 00:05:20]} 22. Bf4 {[%clk 00:07:00]} {[%emt 00:02:28]} Re8
{[%clk 00:05:16]} {[%emt 00:01:36]} 23. Qa7+ {[%clk 00:03:11]} {[%emt
00:04:19]} Re7 {[%clk 00:04:22]} {[%emt 00:01:25]} 24. Qd4 {[%clk 00:02:36]}
{[%emt 00:01:04]} Qxc2 {[%clk 00:03:14]} {[%emt 00:01:38]} 25. Bd6 {[%clk
00:02:18]} {[%emt 00:00:48]} Rd7 {[%clk 00:02:55]} {[%emt 00:00:49]} 26. Bb4
{[%clk 00:02:41]} {[%emt 00:00:08]} Qc6 {[%clk 00:01:50]} {[%emt 00:01:33]} 27.
h3 {[%clk 00:02:34]} {[%emt 00:00:38]} Rc7 {[%clk 00:00:40]} {[%emt 00:01:40]}
28. Qe3 {[%clk 00:01:22]} {[%emt 00:01:42]} g5 {[%clk 00:00:39]} {[%emt
00:00:32]} 29. Qd3 {[%clk 00:01:13]} {[%emt 00:00:38]} Kg7 {[%clk 00:00:43]}
{[%emt 00:00:26]} 30. Bc3 {[%clk 00:01:34]} {[%emt 00:00:09]} Bf7 {[%clk
00:00:47]} {[%emt 00:00:26]} 31. Qe3 {[%clk 00:01:43]} {[%emt 00:00:22]} h6
{[%clk 00:00:50]} {[%emt 00:00:26]} 32. h4 {[%clk 00:02:00]} {[%emt 00:00:12]}
Kh7 {[%clk 00:00:47]} {[%emt 00:00:34]} 33. Qd4 {[%clk 00:02:13]} {[%emt
00:00:17]} Kg7 {[%clk 00:00:58]} {[%emt 00:00:18]} 34. Re3 {[%clk 00:02:11]}
{[%emt 00:00:32]} Qd6 {[%clk 00:00:55]} {[%emt 00:00:34]} 35. hxg5 {[%clk
00:01:18]} {[%emt 00:01:23]} hxg5 {[%clk 00:01:23]} {[%emt 00:00:02]} 36. Rf3
{[%clk 00:01:43]} {[%emt 00:00:05]} Rc6 {[%clk 00:01:04]} {[%emt 00:00:50]} 37.
Qd2 {[%clk 00:01:31]} {[%emt 00:00:41]} Qe7 {[%clk 00:00:40]} {[%emt 00:00:54]}
38. Qxg5+ {[%clk 00:01:30]} {[%emt 00:00:30]} Bg6 {[%clk 00:00:50]} {[%emt
00:00:21]} 39. Qd2 {[%clk 00:00:58]} {[%emt 00:01:03]} Qf7 {[%clk 00:00:46]}
{[%emt 00:00:33]} 40. Rh3 {[%clk 00:00:53]} {[%emt 00:00:35]} Kg8 {[%clk
00:00:39]} {[%emt 00:00:38]} 41. Qf4 {[%clk 00:00:35]} {[%emt 00:00:46]} Re6
{[%clk 00:11:53]} {[%emt 00:19:17]} 42. Rg3 {[%clk 00:29:45]} {[%emt 00:01:20]}
Kg7 {[%clk 00:03:12]} {[%emt 00:09:11]} 43. Bd2 {[%clk 00:29:28]} {[%emt
00:00:47]} f5 {[%clk 00:02:39]} {[%emt 00:01:03]} 44. Bc3+ {[%clk 00:22:34]}
{[%emt 00:07:24]} Kf8 {[%clk 00:01:37]} {[%emt 00:01:31]} 45. Qb8+ {[%clk
00:22:05]} {[%emt 00:01:00]} Qe8 {[%clk 00:01:28]} {[%emt 00:00:38]} 46. Qc7
{[%clk 00:20:38]} {[%emt 00:01:57]} Qf7 {[%clk 00:01:08]} {[%emt 00:00:50]} 47.
Qd8+ {[%clk 00:20:02]} {[%emt 00:01:07]} Qe8 {[%clk 00:00:49]} {[%emt
00:00:49]} 48. Qxd5 {[%clk 00:19:39]} {[%emt 00:00:53]} Qf7 {[%clk 00:00:43]}
{[%emt 00:00:35]} 49. Qd8+ {[%clk 00:19:15]} {[%emt 00:00:55]} Qe8 {[%clk
00:01:01]} {[%emt 00:00:12]} 50. Qd4 {[%clk 00:19:15]} {[%emt 00:00:30]} Qf7
{[%clk 00:00:42]} {[%emt 00:00:48]} 51. Rh3 {[%clk 00:16:46]} {[%emt 00:03:00]}
Ke7 {[%clk 00:00:34]} {[%emt 00:00:38]} 52. Bb4+ {[%clk 00:16:45]} {[%emt
00:00:31]} 1-0

[Event "FIDE Women's Grand Swiss 2023"]
[Site "Villa Marina, Douglas, Isle of Man, Isle Of Man"]
[Date "2023.10.29"]
[Round "5.25"]
[White "Gomez Barrera, Javiera Belen"]
[Black "Kanyamarala, Trisha"]
[Result "1/2-1/2"]
[TimeControl "40/90 + 30 + 30s/move"]
[WhiteFideId "3418723"]
[BlackFideId "45004722"]
[WhiteElo "2266"]
[BlackElo "2184"]

1. e4 {[%clk 01:30:57]} {[%emt 00:00:02]} c5 {[%clk 01:30:54]} {[%emt
00:00:07]} 2. Nf3 {[%clk 01:31:22]} {[%emt 00:00:05]} d6 {[%clk 01:31:11]}
{[%emt 00:00:12]} 3. d4 {[%clk 01:31:48]} {[%emt 00:00:05]} cxd4 {[%clk
01:31:36]} {[%emt 00:00:05]} 4. Nxd4 {[%clk 01:32:14]} {[%emt 00:00:04]} Nf6
{[%clk 01:31:54]} {[%emt 00:00:11]} 5. Nc3 {[%clk 01:32:40]} {[%emt 00:00:05]}
a6 {[%clk 01:32:11]} {[%emt 00:00:13]} 6. Be3 {[%clk 01:32:59]} {[%emt
00:00:10]} e5 {[%clk 01:32:18]} {[%emt 00:00:24]} 7. Nb3 {[%clk 01:33:23]}
{[%emt 00:00:06]} Be6 {[%clk 01:32:38]} {[%emt 00:00:10]} 8. h3 {[%clk
01:33:22]} {[%emt 00:00:31]} Nbd7 {[%clk 01:32:54]} {[%emt 00:00:14]} 9. g4
{[%clk 01:32:47]} {[%emt 00:01:04]} h6 {[%clk 01:32:58]} {[%emt 00:00:26]} 10.
Qd2 {[%clk 01:30:43]} {[%emt 00:02:35]} b5 {[%clk 01:30:17]} {[%emt 00:03:11]}
11. a3 {[%clk 01:21:07]} {[%emt 00:10:07]} Rc8 {[%clk 01:28:30]} {[%emt
00:02:17]} 12. O-O-O {[%clk 01:10:44]} {[%emt 00:10:52]} Bxb3 {[%clk 01:24:01]}
{[%emt 00:04:59]} 13. cxb3 {[%clk 01:11:12]} {[%emt 00:00:02]} Nxe4 {[%clk
01:23:43]} {[%emt 00:00:48]} 14. Qc2 {[%clk 01:11:36]} {[%emt 00:00:06]} Nxc3
{[%clk 01:17:15]} {[%emt 00:06:58]} 15. bxc3 {[%clk 01:12:05]} {[%emt
00:00:01]} Qc7 {[%clk 01:13:41]} {[%emt 00:04:04]} 16. Kb2 {[%clk 01:12:18]}
{[%emt 00:00:17]} Be7 {[%clk 01:12:23]} {[%emt 00:01:48]} 17. Bg2 {[%clk
01:11:31]} {[%emt 00:01:17]} O-O {[%clk 01:02:13]} {[%emt 00:10:40]} 18. h4
{[%clk 01:08:53]} {[%emt 00:03:08]} a5 {[%clk 00:59:59]} {[%emt 00:02:44]} 19.
g5 {[%clk 01:03:25]} {[%emt 00:05:58]} h5 {[%clk 00:56:41]} {[%emt 00:03:48]}
20. g6 {[%clk 00:48:18]} {[%emt 00:15:37]} Nf6 {[%clk 00:45:09]} {[%emt
00:12:01]} 21. Rc1 {[%clk 00:28:53]} {[%emt 00:19:55]} b4 {[%clk 00:34:04]}
{[%emt 00:11:36]} 22. gxf7+ {[%clk 00:27:29]} {[%emt 00:01:54]} Rxf7 {[%clk
00:30:42]} {[%emt 00:03:52]} 23. cxb4 {[%clk 00:27:12]} {[%emt 00:00:48]} Qxc2+
{[%clk 00:30:59]} {[%emt 00:00:13]} 24. Rxc2 {[%clk 00:27:40]} {[%emt
00:00:01]} Rxc2+ {[%clk 00:31:04]} {[%emt 00:00:24]} 25. Kxc2 {[%clk 00:28:09]}
{[%emt 00:00:02]} axb4 {[%clk 00:31:23]} {[%emt 00:00:11]} 26. axb4 {[%clk
00:28:22]} {[%emt 00:00:17]} d5 {[%clk 00:30:59]} {[%emt 00:00:55]} 27. b5
{[%clk 00:17:14]} {[%emt 00:11:37]} Rf8 {[%clk 00:24:00]} {[%emt 00:07:29]} 28.
Rd1 {[%clk 00:12:55]} {[%emt 00:04:49]} d4 {[%clk 00:19:49]} {[%emt 00:04:41]}
29. Bg5 {[%clk 00:12:52]} {[%emt 00:00:32]} Bc5 {[%clk 00:15:28]} {[%emt
00:04:52]} 30. Ra1 {[%clk 00:02:33]} {[%emt 00:10:49]} Ng4 {[%clk 00:10:45]}
{[%emt 00:05:12]} 1/2-1/2